lending/lending_fUSD_20250131
["ID","MTS","AMOUNT","RATE_DAILY","PERIOD"]
[351039537,1738305053756,-637.86,0.00019452,3]
[351039538,1738305053765,-500.0,0.00019452,3]
[351039539,1738305053774,-500.0,0.00019452,3]
[351039540,1738305053784,-813.38,0.00019452,3]
[351039541,1738305053793,-500.0,0.00019452,3]
[351039542,1738305053804,-255.87204164,0.00019452,3]
[351039543,1738305053814,-669.6,0.00019452,3]
[351039544,1738305053823,-500.0,0.00019452,3]
[351039545,1738305053833,-577.58,0.00019452,3]
[351039546,1738305053842,-636.74,0.00019452,3]
[351039547,1738305053851,-621.08,0.00019452,3]
[351039548,1738305053860,-619.94,0.00019452,3]
[351039549,1738305053870,-500.0,0.00019452,3]
[351039550,1738305053879,-1585.17,0.00019452,3]
[351039551,1738305053888,-500.0,0.00019452,3]
[351039552,1738305053898,-1674.68,0.00019452,3]
[351039553,1738305053907,-514.86,0.00019452,3]
[351039554,1738305053916,-500.0,0.00019452,3]
[351039555,1738305053926,-592.24,0.00019452,3]
[351039556,1738305053935,-587.16,0.00019452,3]
[351039557,1738305053944,-589.61,0.00019452,3]
[351039558,1738305053954,-1014.15,0.00019452,3]
[351039559,1738305053963,-500.0,0.00019452,3]
[351039560,1738305053973,-508.89,0.00019452,3]
[351039561,1738305053984,-594.29,0.00019452,3]
[351039562,1738305053994,-500.0,0.00019452,3]
[351039563,1738305054003,-596.58,0.00019452,3]
[351039564,1738305054012,-500.0,0.00019452,3]
[351039565,1738305054022,-520.48352395,0.00019452,3]
[351039566,1738305054031,-571.22,0.00019452,3]
[351039567,1738305054040,-500.0,0.00019452,3]
[351039568,1738305054050,-579.26,0.00019452,3]
[351039569,1738305054059,-500.0,0.00019452,3]
[351039570,1738305054070,-885.01,0.00019452,3]
[351039571,1738305054079,-623.55,0.00019452,3]
[351039572,1738305054090,-1002.67,0.00019452,3]
[351039573,1738305054099,-500.0,0.00019452,3]
[351039574,1738305054109,-500.0,0.00019452,3]
[351039575,1738305054169,-1096.16,0.00019452,3]
[351039576,1738305054179,-741.76,0.00019452,3]
[351039577,1738305054188,-786.28,0.00019452,3]
[351039578,1738305054197,-500.0,0.00019452,3]
[351039579,1738305054207,-645.76,0.00019452,3]
[351039580,1738305054218,-500.0,0.00019452,3]
[351039581,1738305054228,-500.0,0.00019452,3]
[351039582,1738305054238,-510.85,0.00019452,3]
[351039583,1738305054247,-500.0,0.00019452,3]
[351039584,1738305054257,-994.37,0.00019452,3]
[351039585,1738305054266,-500.0,0.00019452,3]
[351039586,1738305054276,-500.0,0.00019452,3]
[351039587,1738305054286,-706.6,0.00019452,3]
[351039588,1738305054295,-612.52,0.00019452,3]
[351039589,1738305054304,-500.0,0.00019452,3]
[351039590,1738305054313,-1207.91,0.00019452,3]
[351039591,1738305054323,-791.36,0.00019452,3]
[351039592,1738305054334,-1013.39,0.00019452,3]
[351039593,1738305054343,-904.4,0.00019452,3]
[351039594,1738305054353,-500.0,0.00019452,3]
[351039595,1738305054364,-500.0,0.00019452,3]
[351039596,1738305054374,-500.0,0.00019452,3]
[351039597,1738305054383,-500.0,0.00019452,3]
[351039598,1738305054393,-517.64,0.00019452,3]
[351039599,1738305054402,-1289.82,0.00019452,3]
[351039600,1738305054412,-611.17,0.00019452,3]
[351039601,1738305054422,-463.8872904,0.00019452,3]
[351039602,1738305054432,-948.72,0.00019452,3]
[351039603,1738305054441,-500.0,0.00019452,3]
[351039604,1738305054450,-500.0,0.00019452,3]
[351039605,1738305054459,-500.0,0.00019452,3]
[351039606,1738305054469,-634.51,0.00019452,3]
[351039607,1738305054478,-500.0,0.00019452,3]
[351039608,1738305054487,-1063.96,0.00019452,3]
[351039609,1738305054497,-565.48,0.00019452,3]
[351039610,1738305054507,-731.2,0.00019452,3]
[351039611,1738305054516,-500.0,0.00019452,3]
[351039612,1738305054526,-500.0,0.00019452,3]
[351039613,1738305054535,-500.0,0.00019452,3]
[351039614,1738305054545,-625.92,0.00019452,3]
[351039615,1738305054555,-500.0,0.00019452,3]
[351039616,1738305054565,-888.22,0.00019452,3]
[351039617,1738305054575,-500.0,0.00019452,3]
[351039618,1738305054585,-500.0,0.00019452,3]
[351039619,1738305054596,-500.0,0.00019452,3]
[351039620,1738305054605,-500.0,0.00019452,3]
[351039621,1738305054618,-500.0,0.00019452,3]
[351039622,1738305054628,-747.79,0.00019452,3]
[351039623,1738305054637,-500.0,0.00019452,3]
[351039624,1738305054647,-753.31,0.00019452,3]
[351039625,1738305054657,-500.0,0.00019452,3]
[351039626,1738305054667,-813.15,0.00019452,3]
[351039627,1738305054676,-500.0,0.00019452,3]
[351039628,1738305054686,-587.71,0.00019452,3]
[351039629,1738305054697,-526.0,0.00019452,3]
[351039630,1738305054709,-500.0,0.00019452,3]
[351039631,1738305054718,-500.0,0.00019452,3]
[351039632,1738305054728,-500.0,0.00019452,3]
[351039633,1738305054737,-500.0,0.00019452,3]
[351039634,1738305054747,-1170.95,0.00019452,3]
[351039635,1738305054757,-680.12,0.00019452,3]
[351039636,1738305054767,-713.89,0.00019452,3]
[351039637,1738305054776,-1073.91,0.00019452,3]
[351039638,1738305054785,-703.88,0.00019452,3]
[351039639,1738305054795,-676.92,0.00019452,3]
[351039640,1738305054805,-1486.98,0.00019452,3]
[351039641,1738305054815,-1628.4,0.00019452,3]
[351039642,1738305054825,-887.83,0.00019452,3]
[351039643,1738305054834,-605.81,0.00019452,3]
[351039644,1738305054844,-750.42,0.00019452,3]
[351039645,1738305054853,-500.0,0.00019452,3]
[351039646,1738305054863,-1440.62,0.00019452,3]
[351039647,1738305054872,-702.9,0.00019452,3]
[351039648,1738305054882,-500.0,0.00019452,3]
[351039649,1738305054891,-1568.12,0.00019452,3]
[351039650,1738305054901,-629.08,0.00019452,3]
[351039651,1738305054911,-614.57,0.00019452,3]
[351039652,1738305054922,-660.86,0.00019452,3]
[351039653,1738305054931,-814.9,0.00019452,3]
[351039654,1738305054941,-500.0,0.00019452,3]
[351039655,1738305054951,-1203.73,0.00019452,3]
[351039656,1738305054960,-500.0,0.00019452,3]
[351039657,1738305054970,-1186.22,0.00019452,3]
[351039658,1738305054981,-1147.47,0.00019452,3]
[351039659,1738305054990,-500.0,0.00019452,3]
[351039660,1738305055000,-540.01,0.00019452,3]
[351039661,1738305055009,-500.0,0.00019452,3]
[351039662,1738305055020,-524.52,0.00019452,3]
[351039663,1738305055030,-151.0,0.00019452,2]
[351039664,1738305055039,-151.0,0.00019452,2]
[351039665,1738305055049,-500.0,0.00019452,3]
[351039666,1738305055058,-500.0,0.00019452,3]
[351039667,1738305055068,-151.0,0.00019452,2]
[351039668,1738305055077,-151.0,0.00019452,2]
[351039669,1738305055087,-500.0,0.00019452,3]
[351039670,1738305055096,-881.63,0.00019452,3]
[351039671,1738305055106,-967.81,0.00019452,3]
[351039672,1738305055115,-534.57,0.00019452,3]
[351039673,1738305055124,-500.0,0.00019452,3]
[351039674,1738305055134,-500.0,0.00019452,3]
[351039675,1738305055144,-500.0,0.00019452,3]
[351039676,1738305055153,-1375.8,0.00019452,3]
[351039677,1738305055162,-2064.31,0.00019452,3]
[351039678,1738305055171,-1371.89,0.00019452,3]
[351039679,1738305055182,-153.239463,0.00019452,3]
[351039680,1738305055191,-693.79,0.00019452,3]
[351039681,1738305055201,-567.83,0.00019452,3]
[351039682,1738305055210,-500.0,0.00019452,3]
[351039683,1738305055219,-1170.58,0.00019452,3]
[351039684,1738305055229,-500.0,0.00019452,3]
[351039685,1738305055239,-1657.08,0.00019452,3]
[351039686,1738305055248,-1028.74,0.00019452,3]
[351039687,1738305055258,-500.0,0.00019452,3]
[351039688,1738305055267,-997.27,0.00019452,3]
[351039689,1738305055278,-500.0,0.00019452,3]
[351039690,1738305055288,-150.823465,0.00019452,3]
[351039691,1738305055298,-709.71,0.00019452,3]
[351039692,1738305055308,-500.0,0.00019452,3]
[351039693,1738305055317,-622.48,0.00019452,3]
[351039694,1738305055327,-1222.79,0.00019452,3]
[351039695,1738305055336,-1025.99,0.00019452,3]
[351039696,1738305055345,-500.0,0.00019452,3]
[351039697,1738305055355,-500.0,0.00019452,3]
[351039698,1738305055364,-579.62,0.00019452,3]
[351039699,1738305055373,-1306.27,0.00019452,3]
[351039700,1738305055383,-1132.77,0.00019452,3]
[351039701,1738305055392,-515.15,0.00019452,3]
[351039702,1738305055402,-500.0,0.00019452,3]
[351039703,1738305055411,-500.0,0.00019452,3]
[351039704,1738305055421,-567.93,0.00019452,3]
[351039705,1738305055430,-1749.85,0.00019452,3]
[351039706,1738305055439,-733.92,0.00019452,3]
[351039707,1738305055449,-151.0,0.00019452,2]
[351039708,1738305055459,-151.0,0.00019452,2]
[351039709,1738305055468,-500.0,0.00019452,3]
[351039710,1738305055478,-500.0,0.00019452,3]
[351039711,1738305055487,-1277.79,0.00019452,3]
[351039712,1738305055496,-1044.01,0.00019452,2]
[351039713,1738305055506,-500.0,0.00019452,3]
[351039714,1738305055516,-151.0,0.00019452,2]
[351039715,1738305055525,-151.0,0.00019452,2]
[351039716,1738305055535,-500.0,0.00019452,3]
[351039717,1738305055544,-2092.2,0.00019452,3]
[351039718,1738305055555,-6599.4,0.00019452,3]
[351039719,1738305055564,-500.0,0.00019452,3]
[351039720,1738305055573,-1349.63,0.00019452,3]
[351039721,1738305055582,-500.0,0.00019452,3]
[351039722,1738305055592,-151.0,0.00019452,2]
[351039723,1738305055602,-151.0,0.00019452,2]
[351039724,1738305055612,-623.6,0.00019452,3]
[351039725,1738305055626,-500.0,0.00019452,3]
[351039726,1738305055635,-1162.34,0.00019452,3]
[351039727,1738305055645,-500.0,0.00019452,3]
[351039728,1738305055655,-704.49,0.00019452,3]
[351039729,1738305055665,-2843.11,0.00019452,3]
[351039730,1738305055675,-500.0,0.00019452,3]
[351039731,1738305055684,-500.0,0.00019452,3]
[351039732,1738305055695,-1467.74,0.00019452,3]
[351039733,1738305055704,-500.0,0.00019452,3]
[351039734,1738305055714,-500.0,0.00019452,3]
[351039735,1738305055724,-2381.94,0.00019452,3]
[351039736,1738305055734,-500.0,0.00019452,3]
[351039737,1738305055744,-1324.74,0.00019452,3]
[351039738,1738305055753,-500.0,0.00019452,3]
[351039739,1738305055764,-1349.56,0.00019452,3]
[351039740,1738305055774,-500.0,0.00019452,3]
[351039741,1738305055783,-2091.67,0.00019452,3]
[351039742,1738305055793,-1017.43,0.00019452,3]
[351039743,1738305055803,-1259.58,0.00019452,3]
[351039744,1738305055812,-500.0,0.00019452,3]
[351039745,1738305055821,-3116.59,0.00019452,3]
[351039746,1738305055831,-1719.88,0.00019452,3]
[351039747,1738305055841,-2234.71,0.00019452,3]
[351039748,1738305055851,-740.76,0.00019452,3]
[351039749,1738305055860,-666.18,0.00019452,3]
[351039750,1738305055870,-906.12,0.00019452,3]
[351039751,1738305055879,-4876.27,0.00019452,3]
[351039752,1738305055888,-1298.89,0.00019452,3]
[351039753,1738305055898,-526.87,0.00019452,3]
[351039754,1738305055907,-819.25,0.00019452,3]
[351039755,1738305055916,-500.0,0.00019452,3]
[351039756,1738305055926,-695.87,0.00019452,3]
[351039757,1738305055935,-500.0,0.00019452,3]
[351039758,1738305055944,-1699.86,0.00019452,3]
[351039759,1738305055953,-2758.75,0.00019452,3]
[351039760,1738305055963,-500.0,0.00019452,3]
[351039761,1738305055973,-3201.18,0.00019452,3]
[351039762,1738305055982,-500.0,0.00019452,3]
[351039763,1738305055990,-3315.06,0.00019452,3]
[351039764,1738305055999,-738.95,0.00019452,3]
[351039765,1738305056008,-842.74,0.00019452,3]
[351039766,1738305056017,-500.0,0.00019452,3]
[351039767,1738305056027,-2477.82,0.00019452,3]
[351039768,1738305056037,-1149.21,0.00019452,3]
[351039769,1738305056049,-6509.57,0.00019452,3]
[351039770,1738305056058,-207.922021,0.00019452,2]
[351039771,1738305056067,-771.98,0.00019452,3]
[351039772,1738305056077,-1331.02,0.00019452,3]
[351039773,1738305056086,-500.0,0.00019452,3]
[351039774,1738305056095,-1406.67,0.00019452,3]
[351039775,1738305056105,-16710.32,0.00019452,3]
[351039776,1738305056116,-1691.16,0.00019452,3]
[351039777,1738305056126,-500.0,0.00019452,3]
[351039778,1738305056135,-1770.42,0.00019452,3]
[351039779,1738305056145,-500.0,0.00019452,3]
[351039780,1738305056153,-478.50878857,0.00019452,3]
[351039781,1738305056163,-1059.79,0.00019452,3]
[351039782,1738305056172,-1589.13,0.00019452,3]
[351039783,1738305056181,-684.17,0.00019452,3]
[351039784,1738305056191,-500.0,0.00019452,3]
[351039785,1738305056200,-500.0,0.00019452,3]
[351039786,1738305056208,-1904.76,0.00019452,3]
[351039787,1738305056217,-500.0,0.00019452,3]
[351039788,1738305056227,-2243.64,0.00019452,3]
[351039789,1738305056236,-500.0,0.00019452,3]
[351039790,1738305056245,-500.0,0.00019452,3]
[351039791,1738305056255,-1607.08,0.00019452,3]
[351039792,1738305056264,-151.0,0.00019452,2]
[351039793,1738305056273,-500.0,0.00019452,3]
[351039794,1738305056282,-8728.29,0.00019452,3]
[351039795,1738305056291,-916.1,0.00019452,3]
[351039796,1738305056300,-2460.64,0.00019452,3]
[351039797,1738305056309,-500.0,0.00019452,3]
[351039798,1738305056318,-1056.49,0.00019452,3]
[351039799,1738305056327,-1532.03,0.00019452,3]
[351039800,1738305056336,-9116.32,0.00019452,3]
[351039801,1738305056345,-4841.93,0.00019452,3]
[351039802,1738305056354,-500.0,0.00019452,3]
[351039803,1738305056363,-2051.41,0.00019452,3]
[351039804,1738305056372,-500.0,0.00019452,3]
[351039805,1738305056381,-3924.2,0.00019452,3]
[351039806,1738305056390,-5218.86,0.00019452,3]
[351039807,1738305056399,-1447.74,0.00019452,3]
[351039808,1738305056408,-1383.2,0.00019452,3]
[351039809,1738305056417,-591.16,0.00019452,3]
[351039810,1738305056426,-500.0,0.00019452,3]
[351039811,1738305056434,-3735.73,0.00019452,3]
[351039812,1738305056443,-625.0,0.00019452,3]
[351039813,1738305056452,-3624.11,0.00019452,3]
[351039814,1738305056461,-2417.21,0.00019452,3]
[351039815,1738305056470,-2287.83,0.00019452,3]
[351039816,1738305056479,-500.0,0.00019452,3]
[351039817,1738305056487,-1686.1,0.00019452,3]
[351039818,1738305056496,-762.72,0.00019452,3]
[351039819,1738305056505,-5194.55,0.00019452,3]
[351039820,1738305056514,-151.0,0.00019452,2]
[351039821,1738305056524,-151.0,0.00019452,2]
[351039822,1738305056533,-502.65,0.00019452,3]
[351039823,1738305056543,-500.0,0.00019452,3]
[351039824,1738305056553,-1053.48,0.00019452,3]
[351039825,1738305056562,-277.251744,0.00019452,2]
[351039826,1738305056571,-277.251744,0.00019452,2]
[351039827,1738305056580,-151.0,0.00019452,2]
[351039828,1738305056589,-189.595804,0.00019452,2]
[351039829,1738305056598,-1780.0,0.00019452,3]
[351039830,1738305056608,-500.0,0.00019452,3]
[351039831,1738305056619,-1463.48,0.00019452,3]
[351039832,1738305056628,-4635.87,0.00019452,3]
[351039833,1738305056638,-277.251744,0.00019452,2]
[351039834,1738305056647,-277.251744,0.00019452,2]
[351039835,1738305056657,-9953.84,0.00019452,3]
[351039836,1738305056666,-509.26,0.00019452,3]
[351039837,1738305056675,-500.0,0.00019452,3]
[351039838,1738305056686,-5346.59,0.00019452,3]
[351039839,1738305056698,-2428.73,0.00019452,3]
[351039840,1738305056708,-2702.64,0.00019452,3]
[351039841,1738305056719,-2686.86,0.00019452,3]
[351039842,1738305056728,-1018.98,0.00019452,3]
[351039843,1738305056737,-911.08,0.00019452,3]
[351039844,1738305056746,-841.09,0.00019452,3]
[351039845,1738305056757,-1934.18,0.00019452,3]
[351039846,1738305056768,-3270.62,0.00019452,3]
[351039847,1738305056777,-9393.9,0.00019452,3]
[351039848,1738305056787,-3812.71,0.00019452,3]
[351039849,1738305056798,-1562.13,0.00019452,3]
[351039850,1738305056807,-898.06,0.00019452,3]
[351039851,1738305056816,-3520.86,0.00019452,3]
[351039852,1738305056825,-685.72,0.00019452,3]
[351039853,1738305056834,-3882.4,0.00019452,3]
[351039854,1738305056843,-500.0,0.00019452,3]
[351039855,1738305056853,-8126.78,0.00019452,3]
[351039856,1738305056863,-500.0,0.00019452,3]
[351039857,1738305056873,-1770.12,0.00019452,3]
[351039858,1738305056882,-1656.89,0.00019452,3]
[351039859,1738305056891,-2893.08,0.00019452,3]
[351039860,1738305056900,-6696.12,0.00019452,3]
[351039861,1738305056909,-500.0,0.00019452,3]
[351039862,1738305056918,-8324.65,0.00019452,3]
[351039863,1738305056927,-2584.33,0.00019452,3]
[351039864,1738305056937,-500.0,0.00019452,3]
[351039865,1738305056946,-6857.56,0.00019452,3]
[351039866,1738305056955,-4353.28,0.00019452,3]
[351039867,1738305056965,-748.5,0.00019452,3]
[351039868,1738305056974,-500.0,0.00019452,3]
[351039869,1738305056983,-500.0,0.00019452,3]
[351039870,1738305056993,-8823.7,0.00019452,3]
[351039871,1738305057002,-892.21,0.00019452,3]
[351039872,1738305057011,-554.54,0.00019452,3]
[351039873,1738305057020,-1643.4,0.00019452,3]
[351039874,1738305057030,-186.692207,0.00019452,2]
[351039875,1738305057039,-2547.58,0.00019452,3]
[351039876,1738305057049,-151.0,0.00019452,2]
[351039877,1738305057058,-3407.2,0.00019452,3]
[351039878,1738305057067,-500.0,0.00019452,3]
[351039879,1738305057076,-151.0,0.00019452,2]
[351039880,1738305057085,-151.0,0.00019452,2]
[351039881,1738305057094,-1000.0,0.00019452,3]
[351039882,1738305057103,-151.0,0.00019452,2]
[351039883,1738305057112,-2444.23,0.00019452,3]
[351039884,1738305057121,-500.0,0.00019452,3]
[351039885,1738305057130,-2068.07,0.00019452,3]
[351039886,1738305057139,-500.0,0.00019452,3]
[351039887,1738305057149,-870.32,0.00019452,3]
[351039888,1738305057158,-1787.06,0.00019452,3]
[351039889,1738305057168,-538.79,0.00019452,3]
[351039890,1738305057177,-646.98,0.00019452,3]
[351039891,1738305057187,-904.46,0.00019452,2]
[351039892,1738305057197,-151.0,0.00019452,2]
[351039893,1738305057207,-4275.8,0.00019452,3]
[351039894,1738305057218,-151.0,0.00019452,2]
[351039895,1738305057227,-1152.43,0.00019452,3]
[351039896,1738305057237,-683.31,0.00019452,3]
[351039897,1738305057247,-500.0,0.00019452,3]
[351039898,1738305057256,-4182.25,0.00019452,3]
[351039899,1738305057265,-2459.19,0.00019452,3]
[351039900,1738305057275,-10947.16,0.00019452,3]
[351039901,1738305057284,-935.69,0.00019452,3]
[351039902,1738305057293,-1432.03,0.00019452,3]
[351039903,1738305057304,-2829.34,0.00019452,3]
[351039904,1738305057313,-1345.96,0.00019452,3]
[351039905,1738305057322,-3565.35,0.00019452,3]
[351039906,1738305057331,-3543.44,0.00019452,3]
[351039907,1738305057341,-2298.22,0.00019452,3]
[351039908,1738305057350,-500.0,0.00019452,3]
[351039909,1738305057359,-500.0,0.00019452,3]
[351039910,1738305057368,-500.0,0.00019452,3]
[351039911,1738305057378,-500.0,0.00019452,3]
[351039912,1738305057387,-500.0,0.00019452,3]
[351039913,1738305057396,-1291.99,0.00019452,3]
[351039914,1738305057406,-1278.48,0.00019452,3]
[351039915,1738305057415,-950.79,0.00019452,3]
[351039916,1738305057424,-449.5226279,0.00019452,3]
[351039917,1738305057433,-1386.34,0.00019452,3]
[351039918,1738305057443,-641.52532743,0.00019452,3]
[351039919,1738305057452,-3756.07,0.00019452,3]
[351039920,1738305057462,-1884.67,0.00019452,3]
[351039921,1738305057471,-500.0,0.00019452,3]
[351039922,1738305057480,-1555.45,0.00019452,3]
[351039923,1738305057490,-500.0,0.00019452,3]
[351039924,1738305057499,-4405.08,0.00019452,3]
[351039925,1738305057509,-1197.53,0.00019452,3]
[351039926,1738305057519,-1376.94,0.00019452,3]
[351039927,1738305057528,-566.1503194,0.00019452,3]
[351039928,1738305057538,-1263.64,0.00019452,3]
[351039929,1738305057547,-500.0,0.00019452,3]
[351039930,1738305057558,-2409.26,0.00019452,3]
[351039931,1738305057568,-1099.02,0.00019452,3]
[351039932,1738305057578,-150.0,0.00019452,4]
[351039933,1738305057587,-150.0,0.00019452,4]
[351039934,1738305057597,-150.0,0.00019452,4]
[351039935,1738305057606,-150.0,0.00019452,4]
[351039936,1738305057620,-500.0,0.00019459,2]
[351039937,1738305057629,-152.0,0.00019478,4]
[351039938,1738305057638,-1000.0,0.00019479,2]
[351039939,1738305057647,-1000.0,0.00019479,2]
[351039940,1738305057657,-1000.0,0.00019479,2]
[351039941,1738305057667,-1000.0,0.00019479,2]
[351039942,1738305057676,-1000.0,0.00019479,2]
[351039943,1738305057686,-1000.0,0.00019479,2]
[351039944,1738305057697,-1000.0,0.00019479,2]
[351039945,1738305057707,-1000.0,0.00019479,2]
[351039946,1738305057716,-1000.0,0.00019479,2]
[351039947,1738305057725,-1000.0,0.00019479,2]
[351039948,1738305057735,-1000.0,0.00019479,2]
[351039949,1738305057744,-1000.0,0.00019479,2]
[351039950,1738305057754,-1000.0,0.00019479,2]
[351039951,1738305057763,-1000.0,0.00019479,2]
[351039952,1738305057773,-1000.0,0.00019479,2]
[351039953,1738305057783,-1000.0,0.00019479,2]
[351039954,1738305057792,-259.62,0.00019479,2]
[351039955,1738305057803,-150.0,0.00019522,4]
[351039956,1738305057813,-500.0,0.00019526,2]
[351039957,1738305057823,-500.0,0.00019526,2]
[351039958,1738305057833,-500.0,0.00019526,2]
[351039959,1738305057843,-500.0,0.00019526,2]
[351039960,1738305057852,-500.0,0.00019526,2]
[351039961,1738305057863,-500.0,0.00019526,2]
[351039962,1738305057872,-500.0,0.00019526,2]
[351039963,1738305057882,-500.0,0.00019526,2]
[351039964,1738305057892,-500.0,0.00019526,2]
[351039965,1738305057902,-500.0,0.00019526,2]
[351039966,1738305057911,-500.0,0.00019526,2]
[351039967,1738305057921,-500.0,0.00019526,2]
[351039968,1738305057930,-500.0,0.00019526,2]
[351039969,1738305057940,-500.0,0.00019526,2]
[351039970,1738305057950,-500.0,0.00019526,2]
[351039971,1738305057959,-500.0,0.00019526,2]
[351039972,1738305057969,-500.0,0.00019526,2]
[351039973,1738305057978,-500.0,0.00019526,2]
[351039974,1738305057987,-500.0,0.00019526,2]
[351039975,1738305057998,-500.0,0.00019526,2]
[351039976,1738305058009,-500.0,0.00019526,2]
[351039977,1738305058018,-500.0,0.00019526,2]
[351039978,1738305058027,-500.0,0.00019526,2]
[351039979,1738305058036,-500.0,0.00019526,2]
[351039980,1738305058045,-500.0,0.00019526,2]
[351039981,1738305058056,-500.0,0.00019526,2]
[351039982,1738305058065,-500.0,0.00019526,2]
[351039983,1738305058074,-500.0,0.00019526,2]
[351039984,1738305058084,-500.0,0.00019526,2]
[351039985,1738305058094,-500.0,0.00019526,2]
[351039986,1738305058104,-500.0,0.00019526,2]
[351039987,1738305058115,-500.0,0.00019526,2]
[351039988,1738305058126,-500.0,0.00019526,2]
[351039989,1738305058135,-500.0,0.00019526,2]
[351039990,1738305058145,-500.0,0.00019526,2]
[351039991,1738305058155,-500.0,0.00019526,2]
[351039992,1738305058164,-500.0,0.00019526,2]
[351039993,1738305058175,-500.0,0.00019526,2]
[351039994,1738305058185,-500.0,0.00019526,2]
[351039995,1738305058195,-500.0,0.00019526,2]
[351039996,1738305058205,-500.0,0.00019526,2]
[351039997,1738305058214,-500.0,0.00019526,2]
[351039998,1738305058224,-500.0,0.00019526,2]
[351039999,1738305058234,-500.0,0.00019526,2]
[351040000,1738305058243,-500.0,0.00019526,2]
[351040001,1738305058253,-500.0,0.00019526,2]
[351040002,1738305058262,-500.0,0.00019526,2]
[351040003,1738305058273,-500.0,0.00019526,2]
[351040004,1738305058285,-500.0,0.00019526,2]
[351040005,1738305058295,-500.0,0.00019526,2]
[351040006,1738305058307,-500.0,0.00019526,2]
[351040007,1738305058317,-839.0,0.00019526,2]
[351040008,1738305058326,-500.0,0.00019526,2]
[351040009,1738305058336,-500.0,0.00019526,2]
[351040010,1738305058346,-500.0,0.00019526,2]
[351040011,1738305058357,-500.0,0.00019526,2]
[351040012,1738305058367,-500.0,0.00019526,2]
[351040013,1738305058377,-500.0,0.00019526,2]
[351040014,1738305058387,-500.0,0.00019526,2]
[351040015,1738305058398,-500.0,0.00019526,2]
[351040016,1738305058408,-500.0,0.00019526,2]
[351040017,1738305058419,-500.0,0.00019526,2]
[351040018,1738305058429,-500.0,0.00019526,2]
[351040019,1738305058439,-500.0,0.00019526,2]
[351040020,1738305058451,-500.0,0.00019526,2]
[351040021,1738305058462,-621.0,0.00019526,2]
[351040022,1738305058473,-500.0,0.00019526,2]
[351040023,1738305058482,-500.0,0.00019526,2]
[351040024,1738305058493,-500.0,0.00019526,2]
[351040025,1738305058503,-500.0,0.00019526,2]
[351040026,1738305058512,-500.0,0.00019526,2]
[351040027,1738305058522,-500.0,0.00019526,2]
[351040028,1738305058532,-500.0,0.00019526,2]
[351040029,1738305058542,-500.0,0.00019526,2]
[351040030,1738305058553,-500.0,0.00019526,2]
[351040031,1738305058562,-500.0,0.00019526,2]
[351040032,1738305058573,-500.0,0.00019526,2]
[351040033,1738305058583,-500.0,0.00019526,2]
[351040034,1738305058593,-500.0,0.00019526,2]
[351040035,1738305058603,-500.0,0.00019526,2]
[351040036,1738305058613,-500.0,0.00019526,2]